fUST/lending_fUST_20250622
["ID","MTS","AMOUNT","RATE_DAILY","PERIOD"]
[366858278,1750522232705,-585.90448829,0.00023465,2]
[366858279,1750522232716,-585.90448829,0.00023465,2]
[366858280,1750522232726,-585.90448829,0.00023465,2]
[366858281,1750522232735,-585.90448829,0.00023465,2]
[366858282,1750522232746,-585.90448829,0.00023465,2]
[366858283,1750522232756,-569.49916262,0.00023465,2]
[366858284,1750522232767,-569.49916262,0.00023465,2]
[366858285,1750522232778,-569.49916262,0.00023465,2]
[366858286,1750522232788,-569.49916262,0.00023465,2]
[366858287,1750522232798,-669.16151608,0.00023465,2]
[366858288,1750522232809,-420.0,0.00023466,2]
[366858289,1750522232819,-500.0,0.00023477,2]
[366858290,1750522232830,-519.688071,0.0002352,4]
[366858291,1750522232841,-1131.9453341,0.00023521,9]
[366858292,1750522232850,-241.316704,0.00023579,7]
[366858293,1750522232860,-241.316704,0.00023579,7]
[366858294,1750522232871,-151.0,0.0002358,7]
[366858295,1750522232881,-151.0,0.0002358,7]
[366858296,1750522232891,-151.0,0.0002358,7]
[366858297,1750522232901,-530.22708145,0.00023603,2]
[366858298,1750522232911,-1131.9453341,0.00023624,9]
[366858299,1750522232921,-25000.0,0.0002366,2]
[366858300,1750522232931,-1131.9453341,0.00023728,9]
[366858301,1750522232941,-1131.9453341,0.00023831,10]
[366858302,1750522232951,-1131.9453341,0.00023934,10]
[366858303,1750522232962,-2305.45,0.00023972,2]
[366858304,1750522232975,-151.0,0.00023973,7]
[366858305,1750522232985,-195.68,0.0002398,3]
[366858306,1750522232994,-151.0,0.0002399,7]
[366858307,1750522233004,-151.0,0.0002399,7]
[366858308,1750522233014,-182.64296,0.0002399,7]
[366858309,1750522233025,-241.316704,0.0002399,7]
[366858310,1750522233035,-241.316704,0.0002399,7]
[366858311,1750522233046,-830.12,0.0002399,10]
[366858312,1750522233056,-500.0,0.00023999,7]
[366858313,1750522233067,-151.0,0.00023999,7]
[366858314,1750522233077,-2305.45,0.00023999,2]
[366858315,1750522233087,-2305.45,0.00023999,2]
[366858316,1750522233097,-2305.45,0.00023999,2]
[366858317,1750522233107,-2305.45,0.00023999,2]
[366858318,1750522233118,-151.0,0.00023999,7]
[366858319,1750522233128,-151.0,0.00024,7]
[366858320,1750522233138,-151.0,0.00024,7]
[366858321,1750522233149,-151.0,0.00024,7]
[366858322,1750522233159,-151.0,0.00024,7]
[366858323,1750522233168,-151.0,0.00024,7]
[366858324,1750522233179,-151.0,0.00024,7]
[366858325,1750522233189,-812.07,0.00024,2]
[366858326,1750522233200,-151.0,0.00024,7]
[366858327,1750522233211,-268.0,0.00024,7]
[366858328,1750522233221,-241.316704,0.00024,7]
[366858329,1750522233231,-241.316704,0.00024,7]
[366858330,1750522233241,-151.0,0.00024011,7]
[366858331,1750522233251,-151.0,0.00024011,7]
[366858332,1750522233262,-151.0,0.00024011,2]
[366858333,1750522233272,-151.0,0.00024011,7]
[366858334,1750522233282,-151.0,0.00024011,7]
[366858335,1750522233292,-151.0,0.00024011,7]
[366858336,1750522233302,-151.0,0.00024011,7]
[366858337,1750522233313,-150.0,0.0002403,2]
[366858338,1750522233323,-150.0,0.0002403,2]
[366858339,1750522233333,-965.0,0.0002403,2]
[366858340,1750522233343,-654.0,0.0002403,2]
[366858341,1750522233353,-2161.0,0.0002403,2]
[366858342,1750522233364,-406.0,0.0002403,2]
[366858343,1750522233374,-1131.9453341,0.00024038,10]
[366858344,1750522233385,-530.22708145,0.0002408,2]
[366858345,1750522233395,-1131.9453341,0.00024141,10]
[366858346,1750522233405,-178.540297,0.00024198,7]
[366858347,1750522233416,-177.0,0.00024232,2]
[366858348,1750522233426,-1131.9453341,0.00024245,10]
[366858349,1750522233436,-153.896652,0.00024245,7]
[366858350,1750522233446,-365.2062734,0.00024274,2]
[366858351,1750522233457,-177.0,0.00024319,2]
[366858352,1750522233467,-1131.9453341,0.00024348,11]
[366858353,1750522233477,-168.0,0.00024357,2]
[366858354,1750522233487,-160.0,0.00024359,2]
[366858355,1750522233498,-640.0,0.000244,2]
[366858356,1750522233508,-822.20939464,0.00024452,11]
[366858357,1750522233522,-309.73593946,0.00024452,11]
[366858358,1750522233532,-200.0,0.0002446,10]
[366858359,1750522233542,-151.0,0.000245,5]
[366858360,1750522233564,-151.0,0.000245,7]
[366858361,1750522233574,-2305.45,0.0002452,2]
[366858362,1750522233585,-500.0,0.00024547,8]
[366858363,1750522233596,-1131.9453341,0.00024555,11]
[366858364,1750522233606,-14580.49543481,0.00024557,3]
[366858365,1750522233618,-151.0,0.00024557,2]
[366858366,1750522233628,-151.0,0.00024557,7]
[366858367,1750522233639,-151.0,0.00024557,7]
[366858368,1750522233649,-151.0,0.00024557,7]
[366858369,1750522233660,-530.22708145,0.00024557,2]
[366858370,1750522233671,-241.316704,0.00024557,7]
[366858371,1750522233681,-241.316704,0.00024557,7]
[366858372,1750522233692,-846.23824438,0.0002456,3]
[366858373,1750522233702,-383.280573,0.0002456,3]
[366858374,1750522233712,-177.0,0.00024582,2]
[366858375,1750522233723,-2305.45,0.00024599,2]
[366858376,1750522233733,-2000.0,0.000246,2]
[366858377,1750522233744,-151.0,0.000246,6]
[366858378,1750522233754,-151.0,0.000246,5]
[366858379,1750522233765,-1299.41,0.000246,7]
[366858380,1750522233776,-151.0,0.000246,6]
[366858381,1750522233787,-358.74,0.00024646,3]
[366858382,1750522233797,-179.37,0.00024646,3]
[366858383,1750522233807,-538.15,0.00024646,3]
[366858384,1750522233818,-2305.45,0.00024656,2]
[366858385,1750522233828,-2305.45,0.00024656,2]
[366858386,1750522233839,-2305.45,0.00024656,2]
[366858387,1750522233851,-2305.45,0.00024656,2]
[366858388,1750522233861,-2305.45,0.00024656,2]
[366858389,1750522233871,-2305.45,0.00024656,2]
[366858390,1750522233881,-2305.45,0.00024656,2]
[366858391,1750522233892,-2305.45,0.00024656,2]
[366858392,1750522233902,-2305.45,0.00024656,2]
[366858393,1750522233913,-2305.68481901,0.00024656,2]
[366858394,1750522233924,-241.316704,0.00024656,7]
[366858395,1750522233934,-241.316704,0.00024656,7]
[366858396,1750522233944,-151.0,0.00024657,7]
[366858397,1750522233954,-151.0,0.00024657,7]
[366858398,1750522233965,-460.0,0.00024657,3]
[366858399,1750522233978,-460.0,0.00024657,3]
[366858400,1750522233989,-475.1791098,0.00024657,3]
[366858401,1750522233998,-470.37448119,0.00024657,3]
[366858402,1750522234009,-503.40863189,0.00024657,3]
[366858403,1750522234019,-447.83790123,0.00024657,3]
[366858404,1750522234029,-460.0,0.00024657,3]
[366858405,1750522234039,-460.0,0.00024657,3]
[366858406,1750522234049,-460.0,0.00024657,3]
[366858407,1750522234060,-460.0,0.00024657,3]
[366858408,1750522234070,-460.0,0.00024657,3]
[366858409,1750522234080,-460.0,0.00024657,3]
[366858410,1750522234091,-460.0,0.00024657,3]
[366858411,1750522234101,-460.0,0.00024657,3]
[366858412,1750522234111,-460.0,0.00024657,3]
[366858413,1750522234122,-460.0,0.00024657,3]
[366858414,1750522234132,-460.0,0.00024657,3]
[366858415,1750522234143,-453.97221297,0.00024657,3]
[366858416,1750522234153,-220.38610971,0.00024657,3]
[366858417,1750522234165,-348.27371383,0.00024657,3]
[366858418,1750522234176,-460.0,0.00024657,3]
[366858419,1750522234186,-460.0,0.00024657,3]
[366858420,1750522234196,-440.0,0.00024657,3]
[366858421,1750522234206,-341.34038946,0.00024657,3]
[366858422,1750522234216,-460.90603957,0.00024657,3]
[366858423,1750522234226,-460.0,0.00024657,3]
[366858424,1750522234236,-460.0,0.00024657,3]
[366858425,1750522234247,-384.96112119,0.00024657,3]
[366858426,1750522234257,-460.0,0.00024657,3]
[366858427,1750522234267,-471.6479819,0.00024657,3]
[366858428,1750522234277,-460.0,0.00024657,3]
[366858429,1750522234287,-375.60947412,0.00024657,3]
[366858430,1750522234296,-417.16920053,0.00024657,3]
[366858431,1750522234306,-460.0,0.00024657,3]
[366858432,1750522234316,-410.29612701,0.00024657,3]
[366858433,1750522234327,-460.0,0.00024657,3]
[366858434,1750522234337,-460.0,0.00024657,3]
[366858435,1750522234347,-460.0,0.00024657,3]
[366858436,1750522234358,-460.0,0.00024657,3]
[366858437,1750522234368,-165.50634157,0.00024657,3]
[366858438,1750522234377,-510.99310834,0.00024657,3]
[366858439,1750522234387,-460.0,0.00024657,3]
[366858440,1750522234397,-554.25142165,0.00024657,3]
[366858441,1750522234406,-460.0,0.00024657,3]
[366858442,1750522234416,-460.0,0.00024657,3]
[366858443,1750522234425,-374.2567479,0.00024657,3]
[366858444,1750522234445,-220.37504653,0.00024657,3]
[366858445,1750522234455,-460.0,0.00024657,3]
[366858446,1750522234467,-575.15303187,0.00024657,3]
[366858447,1750522234478,-460.0,0.00024657,3]
[366858448,1750522234488,-460.0,0.00024657,3]
[366858449,1750522234498,-460.0,0.00024657,3]
[366858450,1750522234508,-460.0,0.00024657,3]
[366858451,1750522234518,-325.98570423,0.00024657,3]
[366858452,1750522234528,-438.40972841,0.00024657,3]
[366858453,1750522234538,-460.0,0.00024657,3]
[366858454,1750522234548,-465.00490995,0.00024657,3]
[366858455,1750522234559,-464.02383435,0.00024657,3]
[366858456,1750522234569,-460.0,0.00024657,3]
[366858457,1750522234578,-461.7807985,0.00024657,3]
[366858458,1750522234588,-363.86400074,0.00024657,3]
[366858459,1750522234638,-101.74309539,0.00024657,3]
[366858460,1750522234648,-460.0,0.00024657,3]
[366858461,1750522234658,-422.43844753,0.00024657,3]
[366858462,1750522234779,-460.0,0.00024657,3]
[366858463,1750522234789,-460.0,0.00024657,3]
[366858464,1750522234800,-467.21260559,0.00024657,3]
[366858465,1750522234810,-429.08723942,0.00024657,3]
[366858466,1750522234820,-82.59995224,0.00024657,2]
[366858479,1750522238839,-2596.25764351,0.0002441,2]
[366858480,1750522238849,-68.40004776,0.00024657,2]
[366858481,1750522238859,-151.0,0.00024657,2]
[366858482,1750522238869,-151.0,0.00024657,2]
[366858483,1750522238879,-151.0,0.00024657,2]
[366858484,1750522238888,-151.0,0.00024657,2]
[366858485,1750522238899,-151.0,0.00024657,2]
[366858486,1750522238908,-201.882724,0.00024657,2]
[366858487,1750522238918,-445.50692239,0.00024657,3]
[366858488,1750522238928,-460.0,0.00024657,3]
[366858489,1750522238938,-460.0,0.00024657,3]
[366858490,1750522238948,-480.57661698,0.00024657,3]
[366858491,1750522238958,-460.0,0.00024657,3]
[366858492,1750522238969,-460.0,0.00024657,3]
[366858493,1750522238983,-460.0,0.00024657,3]
[366858494,1750522238993,-424.88051692,0.00024657,3]
[366858495,1750522239003,-462.29387247,0.00024657,3]
[366858496,1750522239014,-460.0,0.00024657,3]
[366858497,1750522239024,-467.39272581,0.00024657,3]
[366858498,1750522239035,-463.58991103,0.00024657,3]
[366858499,1750522239044,-460.0,0.00024657,3]
[366858500,1750522239056,-197.34770729,0.00024657,3]
[366858501,1750522239067,-503.67444599,0.00024657,3]
[366858502,1750522239078,-460.0,0.00024657,3]
[366858503,1750522239088,-465.21025429,0.00024657,3]
[366858504,1750522239169,-460.0,0.00024657,3]
[366858505,1750522239197,-460.0,0.00024657,3]
[366858506,1750522239207,-460.0,0.00024657,3]
[366858507,1750522239221,-466.07935315,0.00024657,3]
[366858508,1750522239232,-460.0,0.00024657,3]
[366858509,1750522239242,-470.0475515,0.00024657,3]
[366858510,1750522239252,-460.0,0.00024657,3]
[366858511,1750522239262,-213.09996486,0.00024657,3]
[366858512,1750522239272,-462.40428532,0.00024657,3]
[366858513,1750522239282,-466.01175438,0.00024657,3]
[366858514,1750522239292,-403.18329381,0.00024657,3]
[366858515,1750522239302,-356.15309531,0.00024657,3]
[366858516,1750522239312,-460.0,0.00024657,3]
[366858517,1750522239322,-419.75326746,0.00024657,3]
[366858518,1750522239331,-460.0,0.00024657,3]
[366858519,1750522239341,-460.0,0.00024657,3]
[366858520,1750522239351,-460.0,0.00024657,3]
[366858522,1750522239360,-460.0,0.00024657,3]
[366858524,1750522239370,-396.31568514,0.00024657,3]
[366858526,1750522239381,-460.0,0.00024657,3]
[366858528,1750522239391,-395.97205256,0.00024657,3]
[366858530,1750522239401,-460.0,0.00024657,3]
[366858532,1750522239411,-466.43058577,0.00024657,3]
[366858533,1750522239421,-460.0,0.00024657,3]
[366858535,1750522239431,-460.0,0.00024657,3]
[366858537,1750522239441,-460.0,0.00024657,3]
[366858539,1750522239450,-320.14972073,0.00024657,3]
[366858541,1750522239463,-460.0,0.00024657,3]
[366858543,1750522239473,-461.56773626,0.00024657,3]
[366858545,1750522239483,-460.0,0.00024657,3]
[366858547,1750522239492,-460.0,0.00024657,3]
[366858549,1750522239502,-420.0,0.00024657,3]
[366858551,1750522239512,-557.77431141,0.00024657,3]
[366858553,1750522239522,-460.0,0.00024657,3]
[366858555,1750522239531,-464.02069639,0.00024657,3]
[366858556,1750522239541,-460.0,0.00024657,3]
[366858558,1750522239551,-460.0,0.00024657,3]
[366858560,1750522239561,-460.0,0.00024657,3]
[366858563,1750522239571,-440.0,0.00024657,3]
[366858565,1750522239581,-461.66089486,0.00024657,3]
[366858567,1750522239592,-180.83188744,0.00024657,3]
[366858569,1750522239602,-460.0,0.00024657,3]
[366858572,1750522239612,-33.71376428,0.00024657,3]
[366858625,1750522240143,-316.31509344,0.0002399,10]
[366858627,1750522240156,-375.44490656,0.0002399,10]
[366858629,1750522240166,-18.16694588,0.00024657,3]
[366858904,1750522245997,-147.79054759,0.00024657,3]
[366858905,1750522246007,-460.0,0.00024657,3]
[366858906,1750522246017,-460.0,0.00024657,3]
[366858907,1750522246027,-460.0,0.00024657,3]
[366858908,1750522246036,-463.00665894,0.00024657,3]
[366858909,1750522246045,-157.1505064,0.00024657,3]
[366858916,1750522495679,155.0,0.00017178,3]
[366858923,1750522673082,162.57892,0.00013699,2]
[366858925,1750523121868,10040.19388099,0.00019102,2]
[366858926,1750523136163,-1127.20827791,0.00020667,2]
[366858927,1750523136186,-175.869617,0.00020875,2]
[366858928,1750523136208,-367.917959,0.00020972,2]
[366858929,1750523136231,-218.94204284,0.00020989,2]
[366858930,1750523136255,-300.0,0.00020989,2]
[366858931,1750523136277,-1200.0,0.00020989,2]
[366858932,1750523136298,-941.38584389,0.0002099,2]
[366858934,1750523222201,204.83831817,0.000189,2]
[366858935,1750523227130,-300.0,0.00020989,2]
[366858936,1750523227152,-300.0,0.00020989,2]
[366858937,1750523227174,-2684.54893093,0.0002099,2]
[366858938,1750523243249,-11032.07846317,0.0002099,2]
[366858939,1750523243271,-194.71785648,0.00021259,2]
[366858940,1750523243293,-984.47735338,0.00021482,2]
[366858941,1750523243317,-183.87672763,0.00021817,2]
[366858942,1750523243338,-284.44,0.00021897,10]
[366858943,1750523243363,-500.0,0.00021899,2]
[366858944,1750523243385,-500.0,0.00021899,2]
[366858945,1750523243411,-500.0,0.00021899,2]
[366858946,1750523243435,-500.0,0.00021899,2]
[366858947,1750523243460,-500.0,0.00021899,2]
[366858948,1750523243482,-485.1693799,0.00021899,2]
[366858949,1750523243506,-500.0,0.00021899,2]
[366858950,1750523243530,-500.0,0.00021899,2]
[366858951,1750523243553,-500.0,0.00021899,2]
[366858952,1750523243577,-500.0,0.00021899,2]
[366858953,1750523243601,-500.0,0.00021899,2]
[366858954,1750523243624,-500.0,0.00021899,2]
[366858955,1750523243647,-500.0,0.00021899,2]
[366858956,1750523243671,-500.0,0.00021899,2]
[366858957,1750523243696,-500.0,0.00021899,2]
[366858958,1750523243719,-500.0,0.00021899,2]
[366858959,1750523243743,-500.0,0.00021899,2]
[366858960,1750523243767,-500.0,0.00021899,2]
[366858961,1750523243791,-500.0,0.00021899,2]
[366858962,1750523243814,-500.0,0.00021899,2]
[366858963,1750523243839,-500.0,0.00021899,2]
[366858964,1750523243866,-500.0,0.00021899,2]
[366858965,1750523243891,-500.0,0.00021899,2]
[366858966,1750523243915,-428.16338116,0.00021899,2]
[366858967,1750523243943,-961.05216052,0.000219,6]
[366858968,1750523243965,-73085.4533056,0.000219,5]
[366858969,1750523243985,-163.27,0.00021905,2]
[366858970,1750523244007,-156.534,0.00021905,2]
[366858971,1750523244029,-494.6,0.00021907,3]
[366858972,1750523244050,-50000.0,0.00021907,2]
[366858973,1750523244073,-460.0,0.00021917,2]
[366858974,1750523244096,-460.0,0.00021917,2]
[366858975,1750523244118,-460.0,0.00021917,2]
[366858976,1750523244140,-460.592287,0.00021917,2]
[366858977,1750523244161,-460.0,0.00021917,2]
[366858978,1750523244180,-460.0,0.00021917,2]
[366858979,1750523244201,-367.78967143,0.00021917,2]
[366858980,1750523244222,-460.0,0.00021917,2]
[366858981,1750523244244,-460.0,0.00021917,2]
[366858982,1750523244264,-460.0,0.00021917,2]
[366858983,1750523244285,-365.82918022,0.00021917,2]
[366858984,1750523244305,-460.0,0.00021917,2]
[366858985,1750523244325,-340.49066878,0.00021917,2]
[366858986,1750523244347,-460.0,0.00021917,2]
[366858987,1750523244368,-409.60171246,0.00021917,2]
[366858988,1750523244389,-471.49498268,0.00021917,2]
[366858989,1750523244425,-465.29538615,0.00021917,2]
[366858990,1750523244461,-375.98148137,0.00021917,2]
[366858992,1750523324400,-2000.0033751,0.000195,2]
[366858993,1750523324424,-1321.0,0.00019609,2]
[366858994,1750523324447,-150.0,0.00019807,2]
[366858995,1750523324472,-378.81658236,0.0002,2]
[366858996,1750523324493,-5706.18004254,0.0002,2]
[366858997,1750523324598,344.66701315,0.0002,120]
[366859001,1750523346087,-300.0,0.00019999,2]
[366859002,1750523346109,-864.67330166,0.0002,2]
[366859003,1750523346130,-1185.75712056,0.0002,2]
[366859004,1750523346151,-361.07348892,0.0002,2]
[366859005,1750523346171,-554.42837408,0.0002,2]
[366859006,1750523346192,-209.13141511,0.0002,7]
[366859007,1750523362085,-112.63858489,0.0002,7]
[366859008,1750523362106,-377.36141511,0.0002,2]
[366859044,1750523432213,-47.00043917,0.0002,2]
[366859045,1750523432223,-197.999999,0.00021,2]
[366859046,1750523432234,-190.26208998,0.00021817,2]
[366859047,1750523432244,-190.26208997,0.00021845,2]
[366859048,1750523432254,-190.26208997,0.00021872,2]
[366859049,1750523432264,-1120.67352716,0.000219,6]
[366859050,1750523432275,-300.0,0.00021906,2]
[366859051,1750523432285,-1200.0,0.00021906,2]
[366859052,1750523432295,-316.64,0.00021907,3]
[366859053,1750523432306,-158.32,0.00021907,3]
[366859054,1750523432316,-474.96,0.00021907,3]
[366859055,1750523432338,-340.18,0.00021907,10]
[366859056,1750523432361,-648.71,0.00021907,10]
[366859057,1750523432384,-169.56697782,0.00021916,2]
[366859058,1750523432407,-200.58115258,0.00021916,2]
[366859059,1750523432429,-380.47978844,0.00021916,2]
[366859060,1750523432451,-500.0,0.00021916,2]
[366859061,1750523432472,-500.0,0.00021916,2]
[366859062,1750523432497,-500.0,0.00021916,2]
[366859063,1750523432521,-189.61856593,0.00021916,2]
[366859064,1750523432542,-500.0,0.00021916,2]
[366859065,1750523432564,-500.0,0.00021916,2]
[366859066,1750523432586,-500.0,0.00021916,2]
[366859067,1750523432609,-500.0,0.00021916,2]
[366859068,1750523432631,-500.0,0.00021916,2]
[366859069,1750523432653,-500.0,0.00021916,2]
[366859070,1750523432663,-500.0,0.00021916,2]
[366859071,1750523432673,-500.0,0.00021916,2]
[366859072,1750523432683,-500.0,0.00021916,2]
[366859073,1750523432693,-500.0,0.00021916,2]
[366859074,1750523432703,-500.0,0.00021916,2]
[366859075,1750523432713,-500.0,0.00021916,2]
[366859076,1750523432722,-500.0,0.00021916,2]
[366859077,1750523432731,-500.0,0.00021916,2]
[366859078,1750523432741,-500.0,0.00021916,2]
[366859079,1750523432750,-500.0,0.00021916,2]
[366859080,1750523432759,-500.0,0.00021916,2]
[366859081,1750523432769,-500.0,0.00021916,2]
[366859082,1750523432779,-500.0,0.00021916,2]
[366859083,1750523432788,-500.0,0.00021916,2]
[366859084,1750523432797,-493.67656623,0.00021916,2]
[366859085,1750523432807,-84.01851863,0.00021917,2]
[366859086,1750523432817,-460.0,0.00021917,2]
[366859087,1750523432827,-468.06845428,0.00021917,2]
[366859088,1750523432837,-400.68196008,0.00021917,2]
[366859089,1750523432847,-230.71043238,0.00021917,2]
[366859090,1750523432861,-182.70497341,0.00021917,2]
[366859091,1750523432870,-460.0,0.00021917,2]
[366859092,1750523432881,-460.0,0.00021917,2]
[366859093,1750523432890,-460.0,0.00021917,2]
[366859094,1750523432900,-460.0,0.00021917,2]
[366859095,1750523432910,-460.0,0.00021917,2]
[366859096,1750523432921,-435.64755293,0.00021917,2]
[366859097,1750523432931,-460.0,0.00021917,2]
[366859098,1750523432940,-451.61416873,0.00021917,2]
[366859099,1750523432950,-404.11422006,0.00021917,2]
[366859100,1750523432960,-460.0,0.00021917,2]
[366859101,1750523432969,-460.0,0.00021917,2]
[366859102,1750523432979,-471.25772779,0.00021917,2]
[366859103,1750523432991,-460.0,0.00021917,2]
[366859104,1750523433001,-460.0,0.00021917,2]
[366859105,1750523433011,-460.0,0.00021917,2]
[366859106,1750523433022,-334.65547459,0.00021917,2]
[366859107,1750523433033,-408.10971001,0.00021917,2]
[366859108,1750523433045,-414.04983101,0.00021917,2]
[366859109,1750523433056,-460.0,0.00021917,2]
[366859110,1750523433067,-460.0,0.00021917,2]
[366859111,1750523433077,-460.0,0.00021917,2]
[366859112,1750523433087,-407.35557638,0.00021917,2]
[366859113,1750523433098,-460.0,0.00021917,2]
[366859114,1750523433108,-445.24321515,0.00021917,2]
[366859115,1750523433118,-465.92024263,0.00021917,2]
[366859116,1750523433129,-460.0,0.00021917,2]
[366859117,1750523433138,-272.15708238,0.00021917,2]
[366859118,1750523433148,-460.0,0.00021917,2]
[366859119,1750523433159,-471.25064297,0.00021917,2]
[366859120,1750523433170,-469.70565677,0.00021917,2]
[366859121,1750523433180,-460.0,0.00021917,2]
[366859122,1750523433191,-460.0,0.00021917,2]
[366859123,1750523433202,-460.0,0.00021917,2]
[366859124,1750523433212,-460.0,0.00021917,2]
[366859125,1750523433222,-480.10877346,0.00021917,2]
[366859126,1750523433233,-460.0,0.00021917,2]
[366859127,1750523433243,-460.0,0.00021917,2]
[366859128,1750523433253,-389.40653647,0.00021917,2]
[366859129,1750523433263,-441.71520093,0.00021917,2]
[366859130,1750523433274,-460.0,0.00021917,2]
[366859131,1750523433284,-73.04613757,0.00021917,2]
[366859142,1750523437998,-1149.60321407,0.00021698,2]
[366859144,1750523438009,-540.59,0.00021907,10]
[366859146,1750523438020,-386.95386243,0.00021917,2]
[366859148,1750523438030,-460.0,0.00021917,2]
[366859150,1750523438041,-460.0,0.00021917,2]
[366859152,1750523438051,-470.87584311,0.00021917,2]
[366859154,1750523438061,-460.0,0.00021917,2]
[366859156,1750523438072,-460.0,0.00021917,2]
[366859158,1750523438081,-460.0,0.00021917,2]
[366859171,1750523438197,-338.09934342,0.00021917,2]
[366859174,1750523438208,-460.0,0.00021917,2]
[366859176,1750523438218,-460.0,0.00021917,2]
[366859178,1750523438227,-460.0,0.00021917,2]
[366859180,1750523438237,-460.0,0.00021917,2]
[366859182,1750523438247,-476.80246605,0.00021917,2]
[366859184,1750523438256,-460.0,0.00021917,2]
[366859186,1750523438267,-460.0,0.00021917,2]
[366859188,1750523438277,-460.0,0.00021917,2]
[366859190,1750523438286,-460.0,0.00021917,2]
[366859192,1750523438295,-460.0,0.00021917,2]
[366859194,1750523438304,-409.4267127,0.00021917,2]
[366859196,1750523438314,-460.0,0.00021917,2]
[366859198,1750523438324,-460.0,0.00021917,2]
[366859200,1750523438333,-460.0,0.00021917,2]
[366859202,1750523438344,-420.98887117,0.00021917,2]
[366859204,1750523438353,-460.0,0.00021917,2]
[366859206,1750523438363,-460.0,0.00021917,2]
[366859208,1750523438373,-477.31044376,0.00021917,2]
[366859210,1750523438382,-460.0,0.00021917,2]
[366859212,1750523438392,-460.0,0.00021917,2]
[366859214,1750523438401,-460.0,0.00021917,2]
[366859216,1750523438411,-460.0,0.00021917,2]
[366859218,1750523438421,-429.58990734,0.00021917,2]
[366859220,1750523438430,-460.0,0.00021917,2]
[366859222,1750523438440,-355.86813998,0.00021917,2]
[366859224,1750523438451,-460.0,0.00021917,2]
[366859226,1750523438460,-460.0,0.00021917,2]
[366859228,1750523438470,-411.57765748,0.00021917,2]
[366859230,1750523438479,-460.0,0.00021917,2]
[366859232,1750523438489,-460.0,0.00021917,2]
[366859234,1750523438499,-460.0,0.00021917,2]
[366859236,1750523438509,-460.0,0.00021917,2]
[366859238,1750523438520,-525.49932537,0.00021917,2]
[366859240,1750523438529,-460.0,0.00021917,2]
[366859242,1750523438539,-460.0,0.00021917,2]
[366859244,1750523438548,-471.2369041,0.00021917,2]
[366859246,1750523438559,-464.10713367,0.00021917,2]
[366859248,1750523438568,-460.0,0.00021917,2]
[366859250,1750523438578,-450.40029805,0.00021917,2]
[366859252,1750523438588,-460.0,0.00021917,2]
[366859254,1750523438598,-460.0,0.00021917,2]
[366859256,1750523438607,-460.0,0.00021917,2]
[366859258,1750523438617,-479.33289174,0.00021917,2]
[366859260,1750523438626,-466.31259971,0.00021917,2]
[366859262,1750523438635,-460.0,0.00021917,2]
[366859264,1750523438644,-460.0,0.00021917,2]
[366859266,1750523438654,-443.40831093,0.00021917,2]
[366859268,1750523438663,-406.19521633,0.00021917,2]
[366859270,1750523438672,-466.49170912,0.00021917,2]
[366859272,1750523438681,-460.0,0.00021917,2]
[366859274,1750523438690,-460.0,0.00021917,2]
[366859276,1750523438700,-460.0,0.00021917,2]
[366859278,1750523438709,-460.0,0.00021917,2]
[366859280,1750523438718,-161.56,0.00021917,2]
[366859282,1750523438727,-460.0,0.00021917,2]